lending/lending_fUSD_20260211
["ID","MTS","AMOUNT","RATE_DAILY","PERIOD"]
[405101804,1770817841172,-150.887,0.00017529,2]
[405101805,1770817841181,-1273.0,0.00017529,2]
[405101806,1770817841190,-918.0,0.00017529,2]
[405101807,1770817841199,-1212.019,0.00017529,2]
[405101808,1770817841208,-412.0,0.00017529,2]
[405101809,1770817841218,-5966.0,0.00017529,2]
[405101810,1770817841227,-2449.0,0.00017529,2]
[405101811,1770817841236,-298.26089446,0.00017534,2]
[405101812,1770817841246,-1000.0,0.00017534,2]
[405101813,1770817841260,-8332.4660659,0.00017543,2]
[405101814,1770817841269,-8882.37938024,0.00017544,2]
[405101815,1770817841279,-638.2,0.00017546,2]
[405101816,1770817841289,-368.79128323,0.000176,2]
[405101817,1770817841299,-333.63557058,0.00017617,2]
[405101818,1770817841308,-3510.8141643,0.0001764,2]
[405101819,1770817841317,-300.0,0.000177,6]
[405101820,1770817841327,-2012.0,0.000177,2]
[405101821,1770817841337,-999.99,0.00017728,2]
[405101822,1770817841347,-9999.99,0.00017728,2]
[405101823,1770817841356,-20374.4,0.00017728,2]
[405101824,1770817841366,-1184.01,0.00017728,2]
[405101825,1770817841375,-280.86,0.00017728,2]
[405101826,1770817841384,-150.99,0.00017728,2]
[405101827,1770817841393,-4573.73,0.00017728,2]
[405101828,1770817841402,-1203.16,0.00017728,2]
[405101829,1770817841411,-9999.99,0.00017728,2]
[405101830,1770817841420,-311.22,0.00017728,2]
[405101831,1770817841429,-200.0,0.00017757,2]
[405101832,1770817841439,-1447.93855646,0.00017763,2]
[405101833,1770817841448,-166.66,0.0001779,2]
[405101834,1770817841458,-1447.93855644,0.0001779,2]
[405101835,1770817841467,-300.0,0.000178,6]
[405101836,1770817841476,-20000.0,0.00017808,2]
[405101837,1770817841485,-500.0,0.00017808,2]
[405101838,1770817841495,-500.0,0.00017808,2]
[405101839,1770817841504,-500.0,0.00017808,2]
[405101840,1770817841514,-500.0,0.00017808,2]
[405101841,1770817841523,-500.0,0.00017808,2]
[405101842,1770817841533,-500.0,0.00017808,2]
[405101843,1770817841547,-384.235559,0.00017808,2]
[405101844,1770817841557,-500.0,0.00017808,2]
[405101845,1770817841566,-500.0,0.00017808,2]
[405101846,1770817841575,-500.0,0.00017808,2]
[405101847,1770817841588,-396.54963767,0.00017808,2]
[405101848,1770817841597,-500.0,0.00017808,2]
[405101849,1770817841607,-500.0,0.00017808,2]
[405101850,1770817841616,-500.0,0.00017808,2]
[405101851,1770817841626,-500.0,0.00017808,2]
[405101852,1770817841635,-500.0,0.00017808,2]
[405101853,1770817841644,-1000.0,0.00017808,2]
[405101854,1770817841653,-1447.93855644,0.00017818,2]
[405101855,1770817841662,-638.2,0.0001782,2]
[405101856,1770817841671,-1447.93855644,0.00017845,2]
[405101857,1770817841681,-500.0,0.00017862,2]
[405101858,1770817841691,-117758.8333325,0.00017863,2]
[405101859,1770817841699,-12125.8048945,0.00017863,2]
[405101860,1770817841709,-113319.2164885,0.00017863,2]
[405101861,1770817841718,-177.01848,0.00017863,2]
[405101862,1770817841728,-177.01848,0.00017863,2]
[405101863,1770817841737,-177.01848,0.00017863,2]
[405101864,1770817841747,-177.01848,0.00017863,2]
[405101865,1770817841756,-152.4375002,0.00017863,2]
[405101866,1770817841765,-3152.3926757,0.00017863,2]
[405101867,1770817841774,-180292.2284903,0.00017863,2]
[405101868,1770817841788,-5987.00577289,0.00017863,2]
[405101886,1770817844659,-1013.2493245,0.00017863,2]
[405101888,1770817845270,-6734.99543298,0.00017863,2]
[405101889,1770817845330,-13647.53567561,0.00017863,2]
[405101890,1770817845445,-410.71407604,0.00017863,2]
[405101891,1770817845506,-3170.053284,0.00017863,2]
[405101902,1770818066081,-400.0,0.000137,5]
[405101903,1770818737588,-600.0,0.000138,5]
[405101905,1770818767523,-1275.0,0.00014289,5]
[405101908,1770818795867,-0.39079215,0.00014289,5]
[405101909,1770818795908,-328.60679571,0.000178,5]
[405101915,1770818872127,-400.0,0.000137,5]
[405101916,1770818872154,-100.0,0.000138,5]
[405101917,1770818873571,-500.0,0.000138,5]
[405101918,1770818874983,-100.0,0.000138,5]
[405101919,1770818875010,-400.0,0.000139,5]
[405101920,1770818882520,-500.0,0.000139,5]
[405101944,1770818993450,-3808.160549,0.0001338,2]
[405101945,1770818993478,-306.72363293,0.00013448,2]
[405101946,1770818993505,-261.0,0.00013516,2]
[405101947,1770818993536,-252.00698751,0.00013516,2]
[405101948,1770818993566,-200.0,0.000136,4]
[405101949,1770818993598,-1885.58312066,0.00013636,2]
[405101950,1770818993628,-192.55751107,0.00013905,2]
[405101951,1770818993656,-3091.62,0.0001397,2]
[405101952,1770818993683,-200.0,0.0001397,2]
[405101953,1770818993711,-200.0,0.0001397,2]
[405101954,1770818998922,7499.21945931,0.00013905,2]
[405101961,1770819031529,-265.0,0.00014002,2]
[405101962,1770819031538,-151.0,0.00014002,2]
[405101963,1770819031550,-355.43285669,0.00014003,2]
[405101964,1770819031560,-300.0,0.00014003,2]
[405101965,1770819031570,-500.0,0.00014004,2]
[405101966,1770819031579,-360.00306394,0.00014004,2]
[405101967,1770819031592,-139.99693606,0.00014004,2]
[405101968,1770819031603,-412.37780593,0.00014004,2]
[405101969,1770819031613,-500.0,0.00014004,2]
[405101970,1770819031623,-500.0,0.00014004,2]
[405101971,1770819031633,-500.0,0.00014004,2]
[405101972,1770819031647,-5177.07580677,0.00014005,2]
[405101974,1770819031659,-3794.84900764,0.00014005,2]
[405101976,1770819031670,-1014.31929586,0.00014005,2]
[405101979,1770819031685,-354.03818412,0.00014005,2]
[405101981,1770819031707,-442845.37990333,0.00014005,2]
[405102004,1770819040160,-1241.95050707,0.00014005,2]
[405102005,1770819040174,-6224.5329924,0.00014005,2]
[405102006,1770819040188,-73190.25172915,0.00014005,2]
[405102007,1770819040201,-29545.60862359,0.00014005,2]
[405102008,1770819040214,-347217.52245007,0.00014005,2]
[405102009,1770819040225,-2500.0,0.00014005,2]
[405102010,1770819040235,-2262.6,0.00014092,2]
[405102011,1770819040246,-265087.28,0.00014105,2]
[405102012,1770819040269,-831.50396121,0.00014115,2]
[405102013,1770819040280,-2107.61520235,0.00014115,2]
[405102014,1770819040291,-7996.43168636,0.00014115,2]
[405102015,1770819040302,-500.0,0.00014182,2]
[405102016,1770819040312,-325.64980532,0.00014182,2]
[405102017,1770819040323,-283.58148437,0.00014215,2]
[405102018,1770819040335,-188.27841096,0.00014339,2]
[405102019,1770819040346,-7499.21945931,0.00014349,2]
[405102020,1770819040357,-1949.86397698,0.00014475,2]
[405102021,1770819040367,-3016.09,0.00014514,2]
[405102022,1770819040378,-7996.43168629,0.0001452,2]
[405102023,1770819040389,-74292.7301,0.00014583,2]
[405102024,1770819040400,-192.55751107,0.00014613,2]
[405102025,1770819040411,-1643.27065866,0.00014613,2]
[405102026,1770819040421,-2107.61520234,0.00014656,2]
[405102027,1770819040431,-150.0,0.00014658,2]
[405102028,1770819040441,-518.70244682,0.00014682,2]
[405102029,1770819040452,-520.25784948,0.00014682,2]
[405102030,1770819040463,-500.0,0.00014682,2]
[405102031,1770819040473,-500.0,0.00014682,2]
[405102032,1770819040483,-500.0,0.00014682,2]
[405102033,1770819040493,-500.0,0.00014682,2]
[405102034,1770819040511,-194.67099102,0.00014682,2]
[405102035,1770819040521,-215.06548114,0.00014682,2]
[405102036,1770819040531,-180.425075,0.00014682,2]
[405102037,1770819040541,-151.0,0.00014683,2]
[405102038,1770819040551,-497.436968,0.00014683,2]
[405102039,1770819040562,-497.436968,0.00014683,2]
[405102040,1770819040571,-497.436968,0.00014683,2]
[405102041,1770819040581,-497.436968,0.00014683,2]
[405102042,1770819040590,-33323.5159,0.00014683,2]
[405102043,1770819040600,-1000.0,0.00014683,2]
[405102044,1770819040610,-556813.97308755,0.00014683,2]
[405102045,1770819040626,-1595.80101245,0.00014683,2]
[405102046,1770819040636,-168.751621,0.00014713,2]
[405102047,1770819040646,-12.44736655,0.00014755,2]
[405102048,1770819040672,-287.55263345,0.00014755,2]
[405102049,1770819040682,-9.93677132,0.00014755,2]
[405102050,1770819040710,-449.00429825,0.00014755,2]
[405102051,1770819040720,-201.46894939,0.00014755,2]
[405102053,1770819040730,-161.1278788,0.00014773,2]
[405102054,1770819040745,-338.8721212,0.00014773,2]
[405102055,1770819040760,-500.0,0.00014773,2]
[405102056,1770819040770,-328.10604349,0.00014773,2]
[405102057,1770819040782,-171.89395651,0.00014773,2]
[405102059,1770819040791,-534.40264883,0.00014773,2]
[405102061,1770819040801,-500.0,0.00014773,2]
[405102063,1770819040810,-500.0,0.00014773,2]
[405102064,1770819040820,-2046.90025123,0.00014793,2]
[405102066,1770819040832,-5452.31920808,0.00014793,2]
[405102067,1770819040842,-2262.6,0.00014797,2]
[405102068,1770819040852,-500.0,0.00014862,2]
[405102069,1770819040862,-1100.0,0.000149,5]
[405102070,1770819040871,-7658.02122159,0.00014925,2]
[405102071,1770819040883,-338.4104647,0.00014925,2]
[405102072,1770819040893,-501.89548392,0.00014932,2]
[405102073,1770819040903,-64.51405138,0.00014932,2]
[405102075,1770819040934,-339.5904462,0.00014932,2]
[405102076,1770819040945,-250.0,0.00015,2]
[405102077,1770819040957,-176.69,0.00015119,2]
[405102078,1770819040967,-283.58148437,0.00015136,2]
[405102079,1770819040978,-166.42,0.00015164,2]
[405102080,1770819040988,-2107.61520234,0.00015196,2]
[405102081,1770819040998,-7499.21945931,0.00015237,2]
[405102082,1770819041014,-1643.27065866,0.0001527,2]
[405102083,1770819041024,-500.0,0.00015273,2]
[405102084,1770819041033,-508.75425762,0.00015273,2]
[405102085,1770819041043,-220.09089425,0.00015273,2]
[405102086,1770819041052,-500.0,0.00015273,2]
[405102087,1770819041062,-500.0,0.00015273,2]
[405102088,1770819041072,-151.10721361,0.00015273,2]
[405102089,1770819041081,-206.85979037,0.00015273,2]
[405102090,1770819041090,-150.0,0.00015273,2]
[405102091,1770819041099,-245.85501438,0.00015273,2]
[405102092,1770819041109,-2014.1448333,0.00015314,2]
[405102093,1770819041118,-1000.0,0.00015321,2]
[405102094,1770819041128,-507.22398632,0.00015321,2]
[405102095,1770819041137,-500.0,0.00015321,2]
[405102096,1770819041146,-1000.0,0.00015321,2]
[405102097,1770819041155,-150.0,0.00015328,2]
[405102098,1770819041173,-7996.43168629,0.00015331,2]
[405102099,1770819041186,-831.50396121,0.00015351,2]
[405102100,1770819041196,-150.0,0.00015383,2]
[405102101,1770819041206,-250.0,0.00015402,2]
[405102102,1770819041216,-900.0,0.00015432,2]
[405102103,1770819041225,-150.0,0.00015437,2]
[405102104,1770819041235,-318.0,0.00015465,2]
[405102105,1770819041246,-150.82598324,0.00015492,2]
[405102106,1770819041261,-2262.6,0.00015502,2]
[405102107,1770819041270,-7499.21945931,0.00015681,2]
[405102108,1770819041280,-7996.43168629,0.00015736,2]
[405102109,1770819041290,-2107.61520234,0.00015737,2]
[405102110,1770819041299,-1000.0,0.00015821,2]
[405102111,1770819041308,-153.95555708,0.00015868,2]
[405102112,1770819041318,-1500.0,0.00015868,2]
[405102113,1770819041328,-500.0,0.00015919,2]
[405102114,1770819041338,-1643.27065866,0.00015928,2]
[405102115,1770819041347,-257.447609,0.00016,2]
[405102116,1770819041357,-283.58148437,0.00016058,2]
[405102117,1770819041367,-4573.73,0.00016116,2]
[405102118,1770819041377,-20374.4,0.00016116,2]
[405102119,1770819041387,-1203.16,0.00016116,2]
[405102120,1770819041397,-280.86,0.00016116,2]
[405102121,1770819041407,-9999.99,0.00016116,2]
[405102122,1770819041416,-311.22,0.00016116,2]
[405102123,1770819041426,-999.99,0.00016116,2]
[405102124,1770819041435,-1184.01,0.00016116,2]
[405102125,1770819041445,-150.99,0.00016116,2]
[405102126,1770819041455,-9999.99,0.00016116,2]
[405102127,1770819041464,-7499.21945931,0.00016124,2]
[405102128,1770819041474,-7996.43168629,0.00016141,2]
[405102129,1770819041484,-2078.42568962,0.00016154,2]
[405102130,1770819041494,-2262.6,0.00016206,2]
[405102131,1770819041509,-191.0,0.00016228,2]
[405102132,1770819041518,-2107.61520234,0.00016278,2]
[405102133,1770819041527,-1000.0,0.00016324,2]
[405102134,1770819041537,-1421.14329274,0.00016368,2]
[405102135,1770819041546,-1000.0,0.00016388,2]
[405102136,1770819041556,-164.0,0.000164,2]
[405102137,1770819041566,-1000.0,0.00016405,2]
[405102138,1770819041575,-927.28043664,0.00016416,2]
[405102139,1770819041585,-368.79128323,0.00016438,2]
[405102140,1770819041594,-151.0,0.00016438,2]
[405102141,1770819041604,-7996.43168629,0.00016546,2]
[405102142,1770819041613,-151.0,0.00016556,2]
[405102143,1770819041623,-500.0,0.00016556,2]
[405102144,1770819041633,-500.0,0.00016556,2]
[405102145,1770819041643,-500.0,0.00016556,2]
[405102146,1770819041653,-500.0,0.00016556,2]
[405102147,1770819041662,-500.0,0.00016556,2]
[405102148,1770819041672,-250.0,0.00016556,2]
[405102149,1770819041681,-500.0,0.00016556,2]
[405102150,1770819041691,-250.0,0.00016556,2]
[405102151,1770819041700,-250.0,0.00016556,2]
[405102152,1770819041709,-250.0,0.00016556,2]
[405102153,1770819041718,-250.0,0.00016556,2]
[405102154,1770819041731,-448.42107791,0.00016556,2]
[405102155,1770819041741,-250.0,0.00016556,2]
[405102156,1770819041751,-250.0,0.00016556,2]
[405102157,1770819041767,-250.0,0.00016556,2]
[405102158,1770819041776,-250.0,0.00016556,2]
[405102159,1770819041786,-262.73598838,0.00016556,2]
[405102160,1770819041795,-250.0,0.00016556,2]
[405102161,1770819041805,-277.35679052,0.00016556,2]
[405102162,1770819041815,-260.23349697,0.00016556,2]
[405102163,1770819041824,-1000.0,0.00016561,2]
[405102164,1770819041833,-7499.21945931,0.00016568,2]
[405102165,1770819041843,-500.0,0.00016575,2]
[405102166,1770819041852,-1643.27065866,0.00016585,2]
[405102167,1770819041862,-831.50396121,0.00016587,2]
[405102168,1770819041872,-164.66725645,0.00016611,2]
[405102169,1770819041883,-1000.0,0.00016618,2]
[405102170,1770819041892,-1000.0,0.00016657,2]
[405102171,1770819041902,-1000.0,0.00016784,2]
[405102172,1770819041913,-900.0,0.00016802,2]
[405102173,1770819041923,-2107.61520234,0.00016819,2]
[405102174,1770819041933,-1000.0,0.00016845,2]
[405102175,1770819041942,-2262.6,0.00016911,2]
[405102176,1770819041952,-1000.0,0.00016912,2]
[405102177,1770819041963,-1000.0,0.00016914,2]
[405102178,1770819041973,-1000.0,0.00016915,2]
[405102179,1770819041984,-1000.0,0.00016948,2]
[405102180,1770819041994,-7996.43168629,0.00016952,2]
[405102181,1770819042013,-1000.0,0.00016959,2]
[405102182,1770819042023,-283.58148437,0.00016979,2]
[405102183,1770819042033,-2142.70654594,0.00016993,2]
[405102184,1770819042044,-7499.21945931,0.00017012,2]
[405102185,1770819042055,-1000.0,0.00017028,2]
[405102186,1770819042064,-1000.0,0.00017042,2]
[405102187,1770819042075,-350.0,0.00017089,2]
[405102188,1770819042085,-287.61899177,0.00017104,2]
[405102189,1770819042095,-5966.0,0.00017126,2]
[405102190,1770819042106,-2449.0,0.00017126,2]
[405102191,1770819042116,-6590.0,0.00017126,2]
[405102192,1770819042130,-1000.0,0.00017146,2]
[405102193,1770819042140,-1000.0,0.00017169,2]
[405102194,1770819042151,-10842.0,0.00017184,2]
[405102195,1770819042162,-1000.0,0.00017211,2]
[405102196,1770819042172,-1000.0,0.00017211,2]
[405102197,1770819042182,-1643.27065866,0.00017243,2]
[405102198,1770819042192,-350.0,0.00017248,2]
[405102199,1770819042202,-1000.0,0.0001726,2]
[405102200,1770819042213,-1000.0,0.00017262,2]
[405102201,1770819042223,-164.72381557,0.00017267,2]
[405102202,1770819042233,-1000.0,0.00017268,2]
[405102203,1770819042242,-1000.0,0.0001728,2]
[405102204,1770819042261,-7996.43168629,0.00017357,2]
[405102205,1770819042271,-2107.61520234,0.00017359,2]
[405102206,1770819042282,-155.34959577,0.00017439,2]
[405102207,1770819042292,-7499.21945931,0.00017456,2]
[405102208,1770819042302,-1000.0,0.00017472,2]
[405102209,1770819042312,-153.41,0.00017487,2]
[405102210,1770819042322,-150.0,0.00017529,2]
[405102211,1770819042331,-150.0,0.00017529,2]
[405102212,1770819042341,-150.0,0.00017529,2]
[405102213,1770819042351,-150.0,0.00017529,2]
[405102214,1770819042362,-150.0,0.00017529,2]
[405102215,1770819042372,-150.0,0.00017529,2]
[405102216,1770819042382,-1336.494,0.00017529,2]
[405102217,1770819042392,-617.018,0.00017529,2]
[405102218,1770819042403,-1337.0,0.00017529,2]
[405102219,1770819042412,-3487.0,0.00017529,2]
[405102220,1770819042423,-150.887,0.00017529,2]
[405102221,1770819042433,-1273.0,0.00017529,2]
[405102222,1770819042443,-1212.019,0.00017529,2]
[405102223,1770819042454,-918.0,0.00017529,2]
[405102224,1770819042463,-489.703,0.00017534,2]
[405102225,1770819042473,-1000.0,0.00017534,2]
[405102226,1770819042483,-500.0,0.00017539,2]
[405102227,1770819042493,-500.0,0.00017539,2]
[405102228,1770819042510,-500.0,0.00017539,2]
[405102229,1770819042521,-500.0,0.00017539,2]
[405102230,1770819042535,-487.0,0.0001754,2]
[405102231,1770819042545,-487.0,0.0001754,2]
[405102232,1770819042556,-487.0,0.0001754,2]
[405102233,1770819042567,-487.0,0.0001754,2]
[405102234,1770819042577,-487.0,0.0001754,2]
[405102235,1770819042588,-487.0,0.0001754,2]
[405102236,1770819042599,-487.0,0.0001754,2]
[405102237,1770819042609,-487.0,0.0001754,2]
[405102238,1770819042619,-487.0,0.0001754,2]
[405102239,1770819042629,-487.0,0.0001754,2]
[405102240,1770819042639,-487.0,0.0001754,2]
[405102241,1770819042649,-487.0,0.0001754,2]
[405102242,1770819042660,-487.0,0.0001754,2]
[405102243,1770819042670,-487.0,0.0001754,2]
[405102244,1770819042679,-487.0,0.0001754,2]
[405102245,1770819043008,-487.0,0.0001754,2]
[405102246,1770819043018,-487.0,0.0001754,2]
[405102247,1770819043027,-487.0,0.0001754,2]
[405102248,1770819043037,-487.0,0.0001754,2]
[405102249,1770819043047,-487.0,0.0001754,2]
[405102250,1770819043056,-487.0,0.0001754,2]
[405102251,1770819043065,-957.02,0.0001754,2]
[405102252,1770819043076,-1000.0,0.00017589,2]
[405102253,1770819043085,-1000.0,0.00017608,2]
[405102254,1770819043094,-500.0,0.00017616,2]
[405102255,1770819043105,-1000.0,0.00017631,2]
[405102256,1770819043114,-3510.8141643,0.0001764,2]
[405102257,1770819043124,-50000.0,0.0001764,2]
[405102258,1770819043134,-298.26089446,0.00017652,2]
[405102259,1770819043147,-176.69,0.00017659,2]
[405102260,1770819043157,-839.0,0.0001768,2]
[405102261,1770819043167,-1000.0,0.00017692,2]
[405102262,1770819043177,-200.0,0.000177,6]
[405102263,1770819043186,-1000.0,0.00017717,2]
[405102264,1770819043195,-178.51987,0.0001772,2]
[405102265,1770819043204,-178.51987,0.0001772,2]
[405102266,1770819043214,-178.51987,0.0001772,2]
[405102267,1770819043224,-200.0,0.00017738,2]
[405102268,1770819043233,-7996.43168629,0.00017762,2]
[405102269,1770819043243,-150.60409536,0.00017763,2]
[405102270,1770819043258,-2012.0,0.000178,2]
[405102271,1770819043268,-200.0,0.000178,6]
[405102272,1770819043278,-166.42,0.00017805,2]
[405102273,1770819043288,-19713.17,0.00017808,2]
[405102274,1770819043297,-500.0,0.00017808,2]
[405102275,1770819043306,-500.0,0.00017808,2]
[405102276,1770819043316,-280.78519666,0.00017808,2]
[405102277,1770819043326,-500.0,0.00017808,2]
[405102278,1770819043336,-500.0,0.00017808,2]
[405102279,1770819043346,-500.0,0.00017808,2]
[405102280,1770819043356,-500.0,0.00017808,2]
[405102281,1770819043365,-500.0,0.00017808,2]
[405102282,1770819043375,-500.0,0.00017808,2]
[405102283,1770819043385,-500.0,0.00017808,2]
[405102285,1770819043396,-500.0,0.00017808,2]
[405102287,1770819043411,-500.0,0.00017808,2]
[405102289,1770819043420,-250.0,0.00017808,2]
[405102291,1770819043429,-500.0,0.00017808,2]
[405102293,1770819043438,-500.0,0.00017808,2]
[405102295,1770819043447,-500.0,0.00017808,2]
[405102296,1770819043456,-197.812594,0.00017808,2]
[405102299,1770819043465,-233.767785,0.00017808,2]
[405102300,1770819043474,-497.436968,0.00017808,2]
[405102301,1770819043484,-497.436968,0.00017808,2]
[405102302,1770819043493,-497.436968,0.00017808,2]
[405102303,1770819043507,-497.436968,0.00017808,2]
[405102304,1770819043516,-1000.0,0.00017808,2]
[405102305,1770819043525,-831.50396121,0.00017823,2]
[405102306,1770819043534,-2206.98740226,0.00017833,2]
[405102307,1770819043543,-12002.506705,0.00017851,2]
[405102308,1770819043552,-13398.98842475,0.00017851,2]
[405102309,1770819043566,-1359.98,0.00017851,2]
[405102310,1770819043929,-937.70955075,0.00017851,2]
[405102311,1770819044961,-160.86444378,0.00017851,2]
[405102314,1770819045583,-685.2047747,0.00017851,2]
[405102315,1770819045704,-3191.89701148,0.00017851,2]
[405102316,1770819045819,-3418.47653268,0.00017851,2]
[405102317,1770819045831,-1350.88,0.00017851,2]
[405102318,1770819045885,-974.94972146,0.00017851,2]
[405102319,1770819046058,-29.18352893,0.00017851,2]
[405102320,1770819047677,2103.12873952,0.00013992,2]
[405102321,1770819056102,1568.0,0.00035616,120]
[405102322,1770819085838,198.77609876,0.000321,120]
[405102323,1770819086393,198.77609876,0.00033,120]
[405102324,1770819096441,-200.0,0.000179,6]
[405102325,1770819237891,1438.93,0.0001388,30]
[405102326,1770819309895,-391.763,0.00013712,2]
[405102327,1770819309920,-200.0,0.0001388,2]
[405102328,1770819309952,-1200.0,0.00013904,2]
[405102329,1770819309981,-708.237,0.00013905,2]
[405102330,1770819339056,-1460.0,0.00013905,2]
[405102331,1770819342233,-1000.0,0.00013905,2]
[405102400,1770820165953,203.37,9.285e-05,2]
[405102432,1770820231617,-458.992652,0.00013199,2]
[405102434,1770820231628,-130.68889539,0.00013266,2]
[405102435,1770820231646,-869.31110461,0.00013266,2]
[405102437,1770820231657,-313.41,0.00013516,2]
[405102439,1770820231668,-206.19844481,0.00013592,2]
[405102441,1770820231681,-268.94667589,0.00013592,2]
[405102443,1770820231691,-182.59241347,0.00013592,2]
[405102444,1770820231701,-192.55751107,0.00013592,2]
[405102445,1770820231710,-825.07353291,0.00013592,2]
[405102446,1770820231720,-875.85485169,0.00013592,2]
[405102447,1770820231734,-1725.0,0.00013592,2]
[405102449,1770820231745,-2255.84924183,0.00013592,2]
[405102451,1770820231757,-260.42008463,0.00013592,2]
[405102453,1770820231767,-906.03991537,0.00013669,2]
[405102455,1770820231778,-1305.99133967,0.00013669,2]
[405102457,1770820231788,-198.70575283,0.00013682,2]
[405102459,1770820231797,-1200.0,0.00013685,2]
[405102461,1770820231807,-2261.91143073,0.00013686,2]
[405102463,1770820231816,-151.0,0.00013689,2]
[405102464,1770820231825,-150.0,0.0001369,2]
[405102465,1770820231835,-194.67099102,0.00013691,2]
[405102466,1770820231844,-234.49755515,0.00013691,2]
[405102467,1770820231853,-500.0,0.00013691,2]
[405102468,1770820231863,-305.66289794,0.00013691,2]
[405102469,1770820231872,-157.19100113,0.00013691,2]
[405102470,1770820231881,-500.0,0.00013691,2]
[405102471,1770820231890,-358.32105063,0.00013691,2]
[405102472,1770820231900,-500.0,0.00013691,2]
[405102473,1770820231909,-500.0,0.00013691,2]
[405102474,1770820231919,-406.8601793,0.00013691,2]
[405102475,1770820231929,-500.0,0.00013691,2]
[405102477,1770820231939,-500.0,0.00013691,2]
[405102478,1770820231949,-500.0,0.00013691,2]
[405102479,1770820231958,-500.0,0.00013691,2]
[405102481,1770820231968,-500.0,0.00013691,2]
[405102483,1770820231977,-500.0,0.00013691,2]
[405102485,1770820231992,-773795.11131472,0.00013692,2]
[405102487,1770820232004,-228958.64226579,0.00013692,2]
[405102489,1770820232016,-183342.12989012,0.00013692,2]
[405102491,1770820232027,-165404.21303089,0.00013692,2]
[405102493,1770820232039,-1254.41808677,0.00013692,2]
[405102494,1770820232060,-21714.43460825,0.00013692,2]
[405102509,1770820238295,-1740.18289666,0.00013592,2]
[405102510,1770820238306,-1215.32485243,0.00013592,2]
[405102511,1770820238320,-1079.60267788,0.00013592,2]
[405102512,1770820238337,-2616.90477119,0.00013592,2]
[405102513,1770820238350,-113.56358284,0.00013592,2]
[405102514,1770820238360,-68491.43641714,0.00013692,2]
[405102515,1770820238373,-17785.83770818,0.00013692,2]
[405102516,1770820238386,-3432.65,0.00013692,2]
[405102517,1770820238398,-825.89185212,0.00013692,2]
[405102518,1770820238420,-5486.62137138,0.00013692,2]
[405102519,1770820238495,-12200.0,0.00013692,2]
[405102520,1770820238507,-588.0,0.00013692,2]
[405102524,1770820239820,-68888.0,0.00013692,2]
[405102525,1770820240167,-254388.33293831,0.00013692,2]
[405102526,1770820240179,-50820.83029231,0.00013692,2]
[405102527,1770820240191,-507.04547635,0.00013692,2]
[405102528,1770820240203,-983.9401612,0.00013692,2]
[405102529,1770820240216,-1641132.46458647,0.00013692,2]
[405102531,1770820240226,-2500.0,0.00013692,2]
[405102532,1770820240237,-500.0,0.00013698,2]
[405102534,1770820240254,-500.0,0.00013698,2]
[405102535,1770820240264,-1097.02,0.00013791,2]
[405102536,1770820240273,-189.05432292,0.00013792,2]
[405102537,1770820240283,-200.0,0.00013794,2]
[405102538,1770820240294,-161.14,0.00013875,2]
[405102539,1770820240303,-160.0,0.0001389,2]
[405102540,1770820240314,-518.70244682,0.00013892,2]
[405102541,1770820240323,-520.25784948,0.00013892,2]
[405102542,1770820240333,-500.0,0.00013892,2]
[405102543,1770820240343,-500.0,0.00013892,2]
[405102544,1770820240352,-500.0,0.00013892,2]
[405102545,1770820240362,-500.0,0.00013892,2]
[405102546,1770820240372,-500.0,0.00013892,2]
[405102547,1770820240381,-500.0,0.00013892,2]
[405102548,1770820240391,-500.0,0.00013892,2]
[405102549,1770820240401,-500.0,0.00013992,2]
[405102550,1770820240412,-500.0,0.00013992,2]